Cogmind - Beta 11.1 @@@ ROGUE MODE // 2022.05.14 @ 03:36:34 Player: Olga Result: Self-destructed Performance ------------- Evolutions (4) 2000 Regions Visited (8) 1600 Robots Destroyed (3) 15 Value Destroyed (81) 81 Prototype IDs (2) 40 Alien Tech Used (0) 0 Bonus (1825) 1825 TOTAL SCORE: 5561 Bonus ------- Pacifist 1325 Entered DSFs 500 Cogmind --------- Core Integrity 531/850 Matter 245/300 Energy 100/100 System Corruption 0% Temperature Cool (0) Movement Flying (37) Location -6/Factory Parts ------- > --- POWER (1) -------- (None) > --- PROPULSION (4) --- Nuclear Pulse Thruster Biomechanical Wings > --- UTILITY (8) ------ Experimental Targeting Computer Experimental Targeting Computer > --- WEAPON (2) ------- (None) > --- INVENTORY (5) ---- Mini Grenade Launcher Mini Grenade Launcher Mini Grenade Launcher Mini Grenade Launcher Peak State ------------ > --- POWER ------------ (None) > --- PROPULSION ------- Nuclear Pulse Thruster Biomechanical Wings > --- UTILITY ---------- Experimental Targeting Computer Experimental Targeting Computer > --- WEAPON ----------- (None) > --- INVENTORY -------- Mini Grenade Launcher Mini Grenade Launcher Mini Grenade Launcher Mini Grenade Launcher [Rating: 23] Favorites ----------- Power None Propulsion Biomechanical Wings Flight Unit Biomechanical Wings Utility Experimental Targeting Computer Device Structural Scanner Processor Experimental Targeting Computer Weapon Axe Launcher Mini Grenade Launcher Slashing Weapon Axe Build | -11 -10 -9 -8 -7 -7 -7 -7 -6 ------- Run | Scr Mat Mat Mat Fac Was Fac DSF Fac Slots Evolved 8 | . . 2 2 2 . . . 2 Power . | . . . . . . . . . Propulsion 2 | . . 2 . . . . . . Utility 6 | . . . 2 2 . . . 2 Weapon . | . . . . . . . . . Parts Attached 9 | . . 2 1 . . . . 6 Power . | . . . . . . . . . Engine . | . . . . . . . . . Core . | . . . . . . . . . Reactor . | . . . . . . . . . Propulsion 4 | . . 1 . . . . . 3 Treads . | . . . . . . . . . Leg . | . . . . . . . . . Wheel . | . . . . . . . . . Hover . | . . . . . . . . . Flight 4 | . . 1 . . . . . 3 Utility 3 | . . 1 . . . . . 2 Device 1 | . . 1 . . . . . . Storage . | . . . . . . . . . Processor 2 | . . . . . . . . 2 Hackware . | . . . . . . . . . Protection . | . . . . . . . . . Artifact . | . . . . . . . . . Weapon 2 | . . . 1 . . . . 1 Energy Gun . | . . . . . . . . . Energy Cannon . | . . . . . . . . . Ballistic Gun . | . . . . . . . . . Ballistic Cannon . | . . . . . . . . . Launcher 1 | . . . . . . . . 1 Special Weapon . | . . . . . . . . . Impact Weapon . | . . . . . . . . . Slashing Weapon 1 | . . . 1 . . . . . Piercing Weapon . | . . . . . . . . . Special Melee Weapon . | . . . . . . . . . Unidentified Prototypes 2 | . . . . . . . . 2 Parts Lost 4 | . . 2 1 . . . . 1 Power . | . . . . . . . . . Propulsion 2 | . . 1 . . . . . 1 Utility 1 | . . 1 . . . . . . Weapon 1 | . . . 1 . . . . . Highest Loss Streak 2 | . . 2 1 . . . . 1 To Critical Strikes . | . . . . . . . . . Average Slot Usage (%) 4 | . . 6 2 . . . . 11 Flight 1 | . . 5 . . . . . 2 Processor 2 | . . . . . . . . 8 Naked Turns 379 | . 49 50 28 98 58 2 42 52 Heaviest Build 3 | . . 1 3 . . . . . Greatest Support 12 | 3 3 4 3 3 3 3 3 12 Greatest Overweight (x) . | . . . . . . . . . Average Overweight (x) . | . . . . . . . . . Largest Inventory Capacity 5 | 5 5 5 5 5 5 5 5 5 Average Capacity 5 | 5 5 5 5 5 5 5 5 5 Most Carried 4 | 4 4 4 4 4 4 4 4 4 Average Carried 3 | 2 2 4 4 4 4 4 4 3 Final Capacity 5 | 5 5 5 5 5 5 5 5 5 Final Carried 4 | . 4 4 4 4 4 4 4 4 Class Distribution -------------------- 100% | Mutant Dominant Class ---------------- Mutant | -10/Materials Mutant | -9/Materials Mutant | -8/Materials Mutant | -7/Factory Mutant | -7/Waste Mutant | -7/Factory Mutant | -7/DSF Mutant | -6/Factory Resources | -11 -10 -9 -8 -7 -7 -7 -7 -6 ----------- Run | Scr Mat Mat Mat Fac Was Fac DSF Fac Matter Collected 214 | 186 . . . . . . 8 20 Remotely . | . . . . . . . . . Salvage Created 58 | . . . . . . . . 58 Parts 3 | . . . . . . . . 3 Haulers Intercepted . | . . . . . . . . . Recyclers Shooed . | . . . . . . . . . Parts Field Recycled . | . . . . . . . . . Retrieved Matter . | . . . . . . . . . Parts Self-Destructed . | . . . . . . . . . Prevented . | . . . . . . . . . Kills | -11 -10 -9 -8 -7 -7 -7 -7 -6 ------- Run | Scr Mat Mat Mat Fac Was Fac DSF Fac Combat Hostiles Destroyed 3 | . . . . . . . . 3 AOE 3 | . . . . . . . . 3 Classes Destroyed 1 | . . . . . . . . 1 Swarmer 3 | . . . . . . . . 3 Best Kill Streak 3 | . . . . . . . . 3 Combat Bots Only 3 | . . . . . . . . 3 Max Kills in Single Turn 3 | . . . . . . . . 3 Gunslinging . | . . . . . . . . . Exploded 3 | . . . . . . . . 3 Melee . | . . . . . . . . . Uniques/NPCs Destroyed . | . . . . . . . . . Combat | -11 -10 -9 -8 -7 -7 -7 -7 -6 -------- Run | Scr Mat Mat Mat Fac Was Fac DSF Fac Damage Taken 1505 | . 119 418 250 195 . . 167 356 Core 1425 | . 119 375 250 195 . . 167 319 Absorbed by Shields . | . . . . . . . . . Core Remaining (%) 52 | 100 52 6 54 . . . 48 . Volleys Fired 1 | . . . . . . . . 1 Largest 1 | . . . . . . . . 1 Hottest 30 | . . . . . . . . 30 Shots Fired 1 | . . . . . . . . 1 Gun . | . . . . . . . . . Cannon . | . . . . . . . . . Launcher 1 | . . . . . . . . 1 Special . | . . . . . . . . . Kinetic . | . . . . . . . . . Thermal . | . . . . . . . . . Explosive 1 | . . . . . . . . 1 Electromagnetic . | . . . . . . . . . Robot Hit Streak 1 | . . . . . . . . 1 Robot Miss Streak . | . . . . . . . . . Penetration Max . | . . . . . . . . . Secondary Targets . | . . . . . . . . . Shots Hit Robots 1 | . . . . . . . . 1 Core Hits 4 | . 1 . . . . . . 3 Critical Kills . | . . . . . . . . . Critical Parts Destroyed . | . . . . . . . . . Critical Strikes . | . . . . . . . . . Melee Attacks . | . . . . . . . . . Impact . | . . . . . . . . . Slashing . | . . . . . . . . . Piercing . | . . . . . . . . . Sneak Attacks . | . . . . . . . . . Combat Hostiles . | . . . . . . . . . Follow-up Attacks . | . . . . . . . . . Damage Inflicted 175 | . 14 . . . . . . 161 Guns . | . . . . . . . . . Cannons . | . . . . . . . . . Explosions 161 | . . . . . . . . 161 Melee . | . . . . . . . . . Ramming 14 | . 14 . . . . . . . Kinetic . | . . . . . . . . . Thermal . | . . . . . . . . . Explosive 161 | . . . . . . . . 161 Electromagnetic . | . . . . . . . . . Impact . | . . . . . . . . . Slashing . | . . . . . . . . . Piercing . | . . . . . . . . . Highest Corruption . | . . . . . . . . . Average Corruption . | . . . . . . . . . Corruption Purged . | . . . . . . . . . Corruption Blocked . | . . . . . . . . . Overload Shots . | . . . . . . . . . Overflow Damage . | . . . . . . . . . Projectiles . | . . . . . . . . . Explosions . | . . . . . . . . . Melee . | . . . . . . . . . Knockbacks . | . . . . . . . . . Impact . | . . . . . . . . . Kinetic . | . . . . . . . . . Secondary . | . . . . . . . . . Self-Inflicted Damage 29 | . 6 . . . . . . 23 Shots 1 | . . . . . . . . 1 Rammed 3 | . 3 . . . . . . . Targets Rammed 3 | . 3 . . . . . . . Kicked . | . . . . . . . . . Crushed . | . . . . . . . . . Highest Temperature . | . . . . . . . . . Average Temperature . | . . . . . . . . . Received Heat Transfer 315 | . 63 114 27 12 . . . 99 Siege Activations . | . . . . . . . . . Robots Corrupted . | . . . . . . . . . Combat Hostiles . | . . . . . . . . . Parts Fried . | . . . . . . . . . Impact Corruptions . | . . . . . . . . . Robots Melted . | . . . . . . . . . Combat Hostiles . | . . . . . . . . . Parts Melted . | . . . . . . . . . Heat Transferred . | . . . . . . . . . Parts Sabotaged . | . . . . . . . . . Parts Stolen . | . . . . . . . . . Parts Stripped . | . . . . . . . . . Power Chain Reactions 1 | . . . . . . . . 1 Missiles Intercepted . | . . . . . . . . . Alert | -11 -10 -9 -8 -7 -7 -7 -7 -6 ------- Run | Scr Mat Mat Mat Fac Was Fac DSF Fac Peak Influence 351 | . 50 317 159 161 71 49 52 351 Initial 139 | . . 20 139 72 56 49 37 27 Average 108 | . 23 106 151 107 69 49 38 162 Maximum Alert Level 1 | . . 1 . . . . . 1 Low Security (%) 82 | 100 100 84 100 100 100 100 100 50 Level 1 17 | . . 15 . . . . . 49 Level 2 . | . . . . . . . . . Level 3 . | . . . . . . . . . Level 4 . | . . . . . . . . . Level 5 . | . . . . . . . . . High Security . | . . . . . . . . . Max Security . | . . . . . . . . . Squads Dispatched 7 | . . 3 2 . . . 1 1 Investigation 4 | . . 2 1 . . . . 1 Extermination . | . . . . . . . . . Reinforcement 3 | . . 1 1 . . . 1 . Assault . | . . . . . . . . . Garrison . | . . . . . . . . . Intercept . | . . . . . . . . . Searches Triggered . | . . . . . . . . . Construction Impeded . | . . . . . . . . . Haulers Reinforced . | . . . . . . . . . Active Scanning Responses . | . . . . . . . . . Cargo Convoy Interrupts . | . . . . . . . . . Stealth | -11 -10 -9 -8 -7 -7 -7 -7 -6 --------- Run | Scr Mat Mat Mat Fac Was Fac DSF Fac Distress Signals 2 | . . 2 . . . . . . Communications Jammed . | . . . . . . . . . Distress Signals . | . . . . . . . . . Times Spotted 77 | . 4 36 3 6 6 . 4 18 Peak Tracking Total 25 | . 4 25 5 4 5 . 3 15 Tactical Retreats 11 | . . 3 . 2 . . 1 5 Traps | -11 -10 -9 -8 -7 -7 -7 -7 -6 ------- Run | Scr Mat Mat Mat Fac Was Fac DSF Fac Traps Triggered 2 | . . . . 1 . . . 1 Indirectly . | . . . . . . . . . Trap Hack Attempts . | . . . . . . . . . Triggered . | . . . . . . . . . Disarmed . | . . . . . . . . . Reprogrammed . | . . . . . . . . . Reused . | . . . . . . . . . Traps Extracted . | . . . . . . . . . Installed . | . . . . . . . . . Triggered . | . . . . . . . . . Machines | -11 -10 -9 -8 -7 -7 -7 -7 -6 ---------- Run | Scr Mat Mat Mat Fac Was Fac DSF Fac Machines Disabled . | . . . . . . . . . Max in Single Turn . | . . . . . . . . . Machines Sabotaged . | . . . . . . . . . Garrisons Compromised . | . . . . . . . . . Overloaded Fab Kills 3 | . . . . . . . . 3 Hacking | -11 -10 -9 -8 -7 -7 -7 -7 -6 --------- Run | Scr Mat Mat Mat Fac Was Fac DSF Fac Machines Accessed 10 | . 1 3 1 1 . 1 . 3 Terminals 9 | . 1 3 1 1 . 1 . 2 Fabricators 1 | . . . . . . . . 1 Repair Stations . | . . . . . . . . . Recycling Units . | . . . . . . . . . Scanalyzers . | . . . . . . . . . Garrison Access . | . . . . . . . . . Total Hacks 25 | . 3 12 2 2 . 1 . 5 Successful 10 | . 1 5 . 1 . 1 . 2 Failed 15 | . 2 7 2 1 . . . 3 Catastrophic 4 | . . 2 1 1 . . . . Database Lockouts . | . . . . . . . . . Manual 25 | . 3 13 2 2 . . . 5 Terminals 24 | . 3 12 2 2 . 1 . 4 Fabricators 1 | . . . . . . . . 1 Repair Stations . | . . . . . . . . . Recycling Units . | . . . . . . . . . Scanalyzers . | . . . . . . . . . Garrison Access . | . . . . . . . . . Terminal Hacks 3 | . . 2 . . . 1 . . Open DSF 1 | . . . . . . 1 . . Level Access Points 1 | . . 1 . . . . . . Terminal Index 1 | . . 1 . . . . . . Fabricator Hacks . | . . . . . . . . . Repair Station Hacks . | . . . . . . . . . Recycling Unit Hacks . | . . . . . . . . . Scanalyzer . | . . . . . . . . . Garrison Access Hacks . | . . . . . . . . . Unauthorized Hacks 7 | . 1 3 . 1 . . . 2 Terminals 6 | . 1 3 . 1 . . . 1 Botnet 6 | . 1 3 . 1 . . . 1 Fabricators 1 | . . . . . . . . 1 Overload 1 | . . . . . . . . 1 Repair Stations . | . . . . . . . . . Recycling Units . | . . . . . . . . . Scanalyzers . | . . . . . . . . . Garrison Access . | . . . . . . . . . Data Cores Recovered . | . . . . . . . . . Used . | . . . . . . . . . Hacking Detections 8 | . 1 3 1 1 . . . 2 Full Trace Events 3 | . . 2 1 . . . . . Feedback Events . | . . . . . . . . . Feedback Blocked . | . . . . . . . . . Robot Schematics Acquired . | . . . . . . . . . Robots Built . | . . . . . . . . . Authchips . | . . . . . . . . . Time . | . . . . . . . . . Total Robot Build Rating . | . . . . . . . . . Part Schematics Acquired . | . . . . . . . . . Parts Built . | . . . . . . . . . Authchips . | . . . . . . . . . Time . | . . . . . . . . . Total Part Build Rating . | . . . . . . . . . Parts Repaired . | . . . . . . . . . Time . | . . . . . . . . . Parts Recycled . | . . . . . . . . . Recycled Matter . | . . . . . . . . . Retrieved Matter . | . . . . . . . . . Retrieved Components . | . . . . . . . . . Parts Scanalyzed . | . . . . . . . . . Part Schematics Acquired . | . . . . . . . . . Parts Damaged . | . . . . . . . . . Bothacking | -11 -10 -9 -8 -7 -7 -7 -7 -6 ------------ Run | Scr Mat Mat Mat Fac Was Fac DSF Fac Used RIF Installer . | . . . . . . . . . Robots Hacked . | . . . . . . . . . Non-combat . | . . . . . . . . . Combat . | . . . . . . . . . Robot Hacks Applied . | . . . . . . . . . Relay Couplers Released . | . . . . . . . . . Fabnet Peak Effective % . | . . . . . . . . . Robots Rewired . | . . . . . . . . . Allies Hacked . | . . . . . . . . . Hacks Repelled . | . . . . . . . . . Allies | -11 -10 -9 -8 -7 -7 -7 -7 -6 -------- Run | Scr Mat Mat Mat Fac Was Fac DSF Fac Total Allies 1 | . . . . . 1 . . . Largest Group 1 | . . . . . 1 . . . Highest-Rated Group 31 | . . . . . 31 . . . Highest-Rated Ally 31 | . . . . . 31 . . . Total Orders . | . . . . . . . . . Ally Attacks 16 | . . . . . 16 . . . Total Damage 250 | . . . . . 250 . . . Kills 1 | . . . . . 1 . . . Allies Corrupted . | . . . . . . . . . Allies Melted . | . . . . . . . . . Intel | -11 -10 -9 -8 -7 -7 -7 -7 -6 ------- Run | Scr Mat Mat Mat Fac Was Fac DSF Fac Robot Analysis Total . | . . . . . . . . . Derelict Logs Recovered . | . . . . . . . . . Drone Launches . | . . . . . . . . . Drone Recoveries . | . . . . . . . . . Exploration | -11 -10 -9 -8 -7 -7 -7 -7 -6 ------------- Run | Scr Mat Mat Mat Fac Was Fac DSF Fac Turns Passed 546 | 3 49 99 38 98 58 2 42 157 Spaces Moved 1089 | 1 83 215 73 195 115 4 83 320 Core 836 | 1 83 98 73 195 115 4 83 184 Treads . | . . . . . . . . . Legs . | . . . . . . . . . Wheels . | . . . . . . . . . Hover . | . . . . . . . . . Flight 253 | . . 117 . . . . . 136 Fastest Speed 37 | 50 50 40 50 50 50 50 50 37 Average Speed 47 | 50 50 44 50 50 50 50 50 45 Slowest Speed 50 | 50 50 50 50 50 50 50 50 50 Overloaded Moves . | . . . . . . . . . Propulsion Burnouts . | . . . . . . . . . Robots Hopped 8 | . . 8 . . . . . . Cave-ins Triggered . | . . . . . . . . . Exploration Rate (%) 28 | 2 23 25 11 7 75 . 77 11 Regions Visited 8 Branch Regions . Pre-discovered Areas . | . . . . . . . . . Known Exits Taken 2 | . . 1 . . . 1 . . Unknown Exits Taken 3 | 1 1 . 1 . . . . . Scrap Searched . | . . . . . . . . . Spaces Dug . | . . . . . . . . . Terrain Destroyed 5 | . . . . . . . . 5 Melee . | . . . . . . . . . Projectile . | . . . . . . . . . AOE 5 | . . . . . . . . 5 Terrain Rammed . | . . . . . . . . . Walls Destroyed . | . . . . . . . . . Machines Disabled . | . . . . . . . . . Actions | -11 -10 -9 -8 -7 -7 -7 -7 -6 --------- Run | Scr Mat Mat Mat Fac Was Fac DSF Fac Total 1097 | 5 89 208 73 195 114 3 82 328 Wait . | . . . . . . . . . Move 1067 | . 82 199 72 195 114 3 82 320 Hop 7 | . . 7 . . . . . . Pick Up 4 | . 4 . . . . . . . Fast Attach 8 | . . 2 1 . . . . 5 Attach 1 | . . . . . . . . 1 Detach 1 | . . . . . . . . 1 Swap . | . . . . . . . . . Drop 5 | 5 . . . . . . . . Fire 1 | . . . . . . . . 1 Melee . | . . . . . . . . . Ram 3 | . 3 . . . . . . . Kick . | . . . . . . . . . Crush . | . . . . . . . . . Escape Stasis . | . . . . . . . . . Rewire . | . . . . . . . . . Trap . | . . . . . . . . . Miscellaneous . | . . . . . . . . . Route ------- -11/Scrapyard -10/Materials -9/Materials (discovered 3 exits: *Mat x3) -8/Materials -7/Factory -7/Waste -7/Factory -7/DSF -6/Factory History --------- Turn | Location | Event 1 | -11/Scrapyard | Released all parts (6) 4 | -11/Scrapyard | Discovered new exit (range 0) 4 | -11/Scrapyard | Entered Materials 48 | -10/Materials | Discovered new exit (range 10) 53 | -10/Materials | Entered another Materials area 53 | -9/Materials | Evolved 2 slots: Propulsion x2 129 | -9/Materials | Identified exit to Materials 138 | -9/Materials | Core integrity fell below 50% 146 | -9/Materials | Core integrity fell below 20% 152 | -9/Materials | Entered another Materials area 152 | -8/Materials | Evolved 2 slots: Utility x2 183 | -8/Materials | Discovered new exit (range 15) 190 | -8/Materials | Entered Factory 190 | -7/Factory | Evolved 2 slots: Utility x2 288 | -7/Factory | Manually triggered Chute Trap 288 | -7/Factory | Sucked down chute 288 | -7/Factory | Entered Waste 289 | -7/Waste | Met a frightened Derelict 291 | -7/Waste | Spotted C-40 Crusher 298 | -7/Waste | Spotted C-40 Crusher 299 | -7/Waste | Spotted C-40 Crusher 304 | -7/Waste | Build established: Mutant 323 | -7/Waste | Spotted C-40 Crusher 330 | -7/Waste | Spotted C-40 Crusher 330 | -7/Waste | Spotted C-40 Crusher 341 | -7/Waste | Discovered new exit (range 11) 346 | -7/Waste | Entered Factory 348 | -7/Factory | Identified exit to DSF 348 | -7/Factory | Entered DSF 370 | -7/DSF | Additional patrols routed to DSF 382 | -7/DSF | Discovered new exit (range 16) 390 | -7/DSF | Core integrity fell below 50% 390 | -7/DSF | Entered Factory 390 | -6/Factory | Evolved 2 slots: Utility x2 442 | -6/Factory | Found Prototype Processor 442 | -6/Factory | Identified Exp. Targeting Computer 445 | -6/Factory | Found Exp. Targeting Computer 547 | -6/Factory | Self-destructed Last Messages --------------- 00471_ Slug penetrates Wall. 00471_ Slug penetrates U-05 Engineer. 00471_ U-05 Engineer destroyed. 00472_ Slug penetrates Terminal. 00472_ Slug penetrates Wall. 00473_ Acquired 20 matter. 00473_ Critical hit (Burn: +37). 00474_ Acquired VTOL Module. 00474_ VTOL Module destroyed. 00486_ Connecting with Terminal... 00491_ Acquired Prototype Flight Unit. 00491_ Identified Biomechanical Wings. 00526_ Connecting with Terminal... >>Trojan(Botnet) Trojan loaded successfully. Testing... Terminal linked with 0 systems. Awaiting botnet instructions. 00532_ Acquired Nuclear Pulse Thruster. 00547_ ALERT: Security rotation in progress. Map ----- +----------------------------------------------------+ | ??????????????# ?????#### # #??????????? | | ??????????????# ?????# + #??????????? | | ?????????????? ?????# ## # #??????????? | | ?????????????? ?????# ###### #??????????? | | ?????????????# ????## #?????? !#??????????? | | ??????????????#?????# #??????#########?????????## | | ????????????????????#T #????????????????????????# | | ????????????????????## #????????????????????????#" | | ?????????????????????# #????????????????????????#" | | ????????????????????##+########?????????????????#" | | ????????????????????# #?????????????????# | | ????????????????????# #?????????????????#" | | ????????????????????# ###???????????????#" | | ????????????????????# + #???????????????#" | | ????????????????????# # #????########???# | | ????????????????????# # #????# ###### | | ????????????????????# # #????# """ + | | ????????????????????# # #????# "Y ###### | | ????????????????????########### #????# """ #????? | | ??????????????????????????????# #????# #????? | | ?????????????????############## #????# #????? | | ?????????????????# # ########+########? | | ?????????????????# """"" + | | ?????????????????#! """"" # ######## ########? | | ?????????????????# """ # #??????# #???????? | | ?????????????????# @ # #??????# #???????? | | ?????????????????############## #??????# #???????? | | ??????????????????????????????# #??????# #???????? | | ??????????????????????????????# #??????# #???????? | | ??????????????????????????????# #??????# #???????? | | ??????????????????????????????# #??????# ######### | | ??????????????????????????????? ???????# | | ??????????????????????????????? ???????########### | | ??????????????????????????????? ?????????????????? | | ??????????????????????????????? ?????????????????? | | ???????????????????????????????+?????????????????? | | ??????????????????????????????? ?????????????????? | | ??????????????????????????????? ?????????????????? | | ?????????????????????????????????????????????????? | | ?????????????????????????????????????????????????? | | ?????????????????????????????????????????????????? | | | | | | | | | | | | | | | | | | | +----------------------------------------------------+ Best States ------------- Heat Dissipation 37 Energy Generation 5 Energy Capacity 100 Matter Stores 297 Matter Capacity 300 Sight Range 16 Terrain Scan Density 10 Evasion (%) 62 Targeting Accuracy 24 Item Schematics ----------------- None Robot Schematics ------------------ None Fabricated ------------ Nothing Alien Tech Used ----------------- None Achievements -------------- None Challenges ------------ None Game ------ Seed PortablePhaseArmor Manual? 0 Play Time 00:11:12 Cumulative 256.5 hours Start 2022.05.14 @ 03:27:41 End 2022.05.14 @ 03:36:34 Sessions 1 Manual Loads 0 Difficulty Rogue Special Mode None Game No. 386 Rogue 383 Adventurer 0 Explorer 3 Win Type - Total 9 Types 9/0/0/0/0/0/0/0/0 Lore% 71 Gallery% 75 Achievement% 63 Wizard Run 0 Options --------- ASCII 1 Keyboard 1 Movement Vi Keybinds 0 Fullscreen 1 Font 18/SmallcapsGlow Map View 76x50 Tactical HUD 1 Map Filters NONE Filters NONE Steam 1 RUN: f1339817-ffd2-4378-a8ad-2c1ce23db2df